lending/lending_fUSD_20251022
["ID","MTS","AMOUNT","RATE_DAILY","PERIOD"]
[392066899,1761135730293,-500.0,0.00044109,120]
[392066900,1761135730319,-500.0,0.00044109,120]
[392066901,1761135730345,-500.0,0.00044109,120]
[392066902,1761135730372,-423.00012271,0.00044109,120]
[392066903,1761135730403,-500.0,0.00044109,120]
[392066904,1761135730432,-500.0,0.00044109,120]
[392066905,1761135730460,-501.67,0.00044109,120]
[392066906,1761135730488,-500.0,0.00044109,120]
[392066907,1761135730517,-500.0,0.00044109,120]
[392066908,1761135730546,-500.0,0.00044109,120]
[392066909,1761135730574,-500.0,0.00044109,120]
[392066910,1761135730601,-500.0,0.00044109,120]
[392066911,1761135730627,-500.0,0.00044109,120]
[392066912,1761135730655,-500.0,0.00044109,120]
[392066913,1761135730681,-298.62066924,0.00044109,120]
[392066914,1761135730708,-500.0,0.00044109,120]
[392066915,1761135730736,-500.0,0.00044109,120]
[392066916,1761135730763,-545.58130158,0.00044109,120]
[392066917,1761135730790,-1510.11,0.00044109,120]
[392066918,1761135730817,-582.14,0.00044109,120]
[392066919,1761135730846,-3001.22,0.00044109,120]
[392066920,1761135730873,-500.0,0.00044109,120]
[392066921,1761135730902,-500.0,0.00044109,120]
[392066922,1761135730937,-541.75,0.00044109,120]
[392066923,1761135730964,-500.0,0.00044109,120]
[392066924,1761135730993,-314.25286213,0.00044109,120]
[392066925,1761135731022,-500.0,0.00044109,120]
[392066926,1761135731050,-500.0,0.00044109,120]
[392066927,1761135731077,-500.0,0.00044109,120]
[392066928,1761135731104,-502.0163191,0.00044109,120]
[392066929,1761135731139,-500.0,0.00044109,120]
[392066930,1761135731167,-1119.79,0.00044109,120]
[392066931,1761135731195,-506.32340126,0.00044109,120]
[392066932,1761135731222,-500.0,0.00044109,120]
[392066933,1761135731249,-889.1,0.00044109,120]
[392066934,1761135731276,-500.0,0.00044109,120]
[392066935,1761135731304,-187.93,0.00044109,60]
[392066936,1761135731332,-500.0,0.00044109,120]
[392066937,1761135731362,-500.0,0.00044109,120]
[392066938,1761135731395,-500.0,0.00044109,120]
[392066939,1761135731422,-500.0,0.00044109,120]
[392066940,1761135731448,-500.0,0.00044109,120]
[392066941,1761135731855,-508.69235977,0.00044109,120]
[392066942,1761135731882,-640.16,0.00044109,120]
[392066943,1761135731909,-500.0,0.00044109,120]
[392066944,1761135731934,-500.0,0.00044109,120]
[392066945,1761135731960,-457.65199213,0.00044109,120]
[392066946,1761135731985,-495.9293632,0.00044109,120]
[392066947,1761135732012,-500.0,0.00044109,120]
[392066948,1761135732038,-500.0,0.00044109,120]
[392066949,1761135732064,-500.0,0.00044109,120]
[392066950,1761135732091,-1410.88,0.00044109,120]
[392066951,1761135732115,-500.0,0.00044109,120]
[392066952,1761135732142,-2240.48,0.00044109,120]
[392066953,1761135732169,-500.0,0.00044109,120]
[392066954,1761135732198,-1153.17,0.00044109,120]
[392066955,1761135732224,-2542.52,0.00044109,120]
[392066956,1761135732252,-602.60151585,0.00044109,120]
[392066957,1761135732277,-500.0,0.00044109,120]
[392066958,1761135732302,-500.0,0.00044109,120]
[392066959,1761135732327,-500.0,0.00044109,120]
[392066960,1761135732353,-500.0,0.00044109,120]
[392066961,1761135732380,-2219.4,0.00044109,120]
[392066962,1761135732405,-500.0,0.00044109,120]
[392066963,1761135732431,-1268.35,0.00044109,120]
[392066964,1761135732456,-500.0,0.00044109,120]
[392066965,1761135732481,-500.0,0.00044109,120]
[392066966,1761135732506,-500.0,0.00044109,120]
[392066967,1761135732532,-500.0,0.00044109,120]
[392066968,1761135732557,-836.73,0.00044109,120]
[392066969,1761135732584,-1624.39,0.00044109,120]
[392066970,1761135732612,-500.0,0.00044109,120]
[392066971,1761135732638,-629.63,0.00044109,120]
[392066972,1761135732663,-245.33564541,0.00044109,120]
[392066973,1761135732687,-455.39283651,0.00044109,120]
[392066974,1761135732714,-500.0,0.00044109,120]
[392066975,1761135732739,-500.0,0.00044109,120]
[392066976,1761135732764,-500.0,0.00044109,120]
[392066977,1761135732789,-500.0,0.00044109,120]
[392066978,1761135732815,-500.0,0.00044109,120]
[392066979,1761135732842,-552.68234819,0.00044109,120]
[392066980,1761135732868,-515.0064634,0.00044109,120]
[392066981,1761135732893,-500.0,0.00044109,120]
[392066982,1761135732918,-500.0,0.00044109,120]
[392066983,1761135732943,-500.0,0.00044109,120]
[392066984,1761135732967,-506.03739442,0.00044109,120]
[392066985,1761135732992,-500.0,0.00044109,120]
[392066986,1761135733017,-500.0,0.00044109,120]
[392066987,1761135733042,-351.60957736,0.00044109,120]
[392066988,1761135733067,-500.0,0.00044109,120]
[392066989,1761135733092,-500.0,0.00044109,120]
[392066990,1761135733117,-1321.99124943,0.00044109,120]
[392066991,1761135745347,-300.0,0.000297,120]
[392066992,1761135745375,-300.0,0.00031104,120]
[392066993,1761135745403,-300.0,0.00031104,120]
[392066994,1761135745429,-300.0,0.00031104,120]
[392066995,1761135745456,-300.0,0.00031104,120]
[392066996,1761135745485,-267.46074303,0.00034603,34]
[392066997,1761135745516,-248.71531821,0.00034604,30]
[392066998,1761135745543,-257.91778498,0.00034604,45]
[392066999,1761135745569,-239.84119403,0.00034688,30]
[392067000,1761135745599,-500.0,0.00043835,120]
[392067001,1761135745625,-500.0,0.00043835,120]
[392067002,1761135745653,-500.0,0.00043835,120]
[392067003,1761135745679,-500.0,0.00043835,120]
[392067004,1761135745705,-500.0,0.00043835,120]
[392067005,1761135745730,-500.0,0.00043835,120]
[392067006,1761135745756,-500.0,0.00043835,120]
[392067007,1761135745781,-356.10033848,0.00043835,120]
[392067008,1761135745806,-583.49149042,0.00043835,120]
[392067009,1761135745831,-500.0,0.00043835,120]
[392067010,1761135745856,-364.25077473,0.00043835,120]
[392067011,1761135746127,-505.91331084,0.00043835,120]
[392067012,1761135746155,-629.63,0.00043835,120]
[392067013,1761135746183,-500.0,0.00043835,120]
[392067014,1761135746208,-500.0,0.00043835,120]
[392067015,1761135746236,-500.0,0.00043835,120]
[392067016,1761135746261,-500.0,0.00043835,120]
[392067017,1761135746286,-500.0,0.00043835,120]
[392067018,1761135746311,-500.0,0.00043835,120]
[392067019,1761135746339,-500.0,0.00043835,120]
[392067020,1761135746365,-500.0,0.00043835,120]
[392067021,1761135746394,-500.0,0.00043835,120]
[392067022,1761135746420,-500.0,0.00043835,120]
[392067023,1761135746446,-500.0,0.00043835,120]
[392067024,1761135746471,-500.0,0.00043835,120]
[392067025,1761135746496,-500.0,0.00043835,120]
[392067026,1761135746522,-500.0,0.00043835,120]
[392067027,1761135746548,-500.0,0.00043835,120]
[392067028,1761135746576,-504.85023617,0.00043835,120]
[392067029,1761135746603,-500.0,0.00043835,120]
[392067030,1761135746631,-500.0,0.00043835,120]
[392067031,1761135746657,-500.0,0.00043835,120]
[392067032,1761135746683,-500.0,0.00043835,120]
[392067033,1761135746708,-500.0,0.00043835,120]
[392067034,1761135746733,-500.0,0.00043835,120]
[392067035,1761135746759,-512.80117282,0.00043835,120]
[392067036,1761135746786,-1896.04,0.00043835,120]
[392067037,1761135746811,-510.21983965,0.00043835,120]
[392067038,1761135746837,-500.0,0.00043835,120]
[392067039,1761135746862,-500.0,0.00043835,120]
[392067040,1761135746887,-509.1310259,0.00043835,120]
[392067041,1761135746913,-500.0,0.00043835,120]
[392067042,1761135746939,-500.0,0.00043835,120]
[392067043,1761135746965,-500.0,0.00043835,120]
[392067044,1761135746993,-500.0,0.00043835,120]
[392067045,1761135747019,-500.0,0.00043835,120]
[392067046,1761135747046,-553.112933,0.00043835,120]
[392067047,1761135747072,-500.0,0.00043835,120]
[392067048,1761135747098,-500.0,0.00043989,120]
[392067049,1761135747124,-300.0,0.0004399,120]
[392067050,1761135747149,-300.0,0.0004399,120]
[392067051,1761135747180,-429.649584,0.0004399,120]
[392067052,1761135747205,-6382.99875057,0.00044109,120]
[392067053,1761135747231,-668.31,0.00044109,120]
[392067054,1761135747256,-507.80604598,0.00044109,120]
[392067055,1761135747284,-500.0,0.00044109,120]
[392067056,1761135747309,-500.0,0.00044109,120]
[392067057,1761135747334,-505.8256582,0.00044109,120]
[392067058,1761135747359,-500.0,0.00044109,120]
[392067059,1761135747384,-500.0,0.00044109,120]
[392067060,1761135747411,-500.0,0.00044109,120]
[392067061,1761135747436,-500.0,0.00044109,120]
[392067062,1761135747461,-500.0,0.00044109,120]
[392067063,1761135747487,-511.03318376,0.00044109,120]
[392067064,1761135747512,-269.9882696,0.00044109,120]
[392067065,1761135747538,-500.0,0.00044109,120]
[392067066,1761135747563,-500.0,0.00044109,120]
[392067067,1761135747591,-500.0,0.00044109,120]
[392067068,1761135747619,-500.0,0.00044109,120]
[392067069,1761135747647,-243.41725175,0.00044109,120]
[392067070,1761135747673,-500.0,0.00044109,120]
[392067071,1761135747699,-504.88763582,0.00044109,120]
[392067072,1761135747726,-500.0,0.00044109,120]
[392067073,1761135747753,-500.0,0.00044109,120]
[392067074,1761135747778,-500.0,0.00044109,120]
[392067075,1761135747805,-957.28,0.00044109,120]
[392067076,1761135747833,-500.0,0.00044109,120]
[392067077,1761135747861,-500.0,0.00044109,120]
[392067078,1761135747890,-500.0,0.00044109,120]
[392067079,1761135747916,-500.0,0.00044109,120]
[392067080,1761135747944,-500.0,0.00044109,120]
[392067081,1761135747971,-2117.82,0.00044109,120]
[392067082,1761135747998,-202.14599337,0.00044109,120]
[392067083,1761135748027,-500.0,0.00044109,120]
[392067084,1761135748053,-500.0,0.00044109,120]
[392067085,1761135748078,-503.88233106,0.00044109,120]
[392067086,1761135748104,-500.0,0.00044109,120]
[392067087,1761135748131,-500.0,0.00044109,120]
[392067088,1761135748168,-500.0,0.00044109,120]
[392067089,1761135748208,-500.0,0.00044109,120]
[392067090,1761135748237,-500.0,0.00044109,120]
[392067091,1761135748262,-1617.27,0.00044109,120]
[392067092,1761135748287,-502.53597717,0.00044109,120]
[392067093,1761135748313,-500.0,0.00044109,120]
[392067094,1761135748338,-500.0,0.00044109,120]
[392067095,1761135748364,-500.0,0.00044109,120]
[392067096,1761135748390,-500.0,0.00044109,120]
[392067097,1761135748415,-500.0,0.00044109,120]
[392067098,1761135748440,-500.0,0.00044109,120]
[392067099,1761135748468,-318.18098435,0.00044109,120]
[392067100,1761135748494,-1774.5,0.00044109,60]
[392067101,1761135748521,-500.0,0.00044109,120]
[392067102,1761135748548,-500.0,0.00044109,120]
[392067103,1761135748575,-1668.4,0.00044109,120]
[392067104,1761135748600,-500.0,0.00044109,120]
[392067105,1761135748626,-500.0,0.00044109,120]
[392067106,1761135748653,-500.0,0.00044109,120]
[392067107,1761135748693,-606.78034945,0.00044109,120]
[392067108,1761135748719,-1019.82,0.00044109,120]
[392067109,1761135748745,-665.8,0.00044109,120]
[392067110,1761135748771,-500.0,0.00044109,120]
[392067111,1761135748796,-500.0,0.00044109,120]
[392067112,1761135748821,-500.0,0.00044109,120]
[392067113,1761135748847,-500.0,0.00044109,120]
[392067114,1761135748873,-608.13226577,0.00044109,120]
[392067115,1761135749047,-500.0,0.00044109,120]
[392067116,1761135749073,-500.0,0.00044109,120]
[392067117,1761135749099,-500.0,0.00044109,120]
[392067118,1761135749124,-336.15903252,0.00044109,120]
[392067119,1761135749150,-1153.4,0.00044109,120]
[392067120,1761135749178,-500.0,0.00044109,120]
[392067121,1761135749210,-1400.05,0.00044109,120]
[392067122,1761135749235,-500.0,0.00044109,120]
[392067123,1761135749261,-500.0,0.00044109,120]
[392067124,1761135749288,-500.0,0.00044109,120]
[392067125,1761135749312,-911.59,0.00044109,120]
[392067126,1761135749340,-500.0,0.00044109,120]
[392067127,1761135749366,-774.69,0.00044109,120]
[392067128,1761135749391,-565.62,0.00044109,120]
[392067129,1761135749418,-500.0,0.00044109,120]
[392067130,1761135749444,-500.0,0.00044109,120]
[392067131,1761135749470,-500.0,0.00044109,120]
[392067132,1761135749496,-500.0,0.00044109,120]
[392067133,1761135749521,-512.29642503,0.00044109,120]
[392067134,1761135749547,-500.0,0.00044109,120]
[392067135,1761135749573,-649.37,0.00044109,30]
[392067136,1761135749599,-1278.06,0.00044109,120]
[392067137,1761135749623,-500.0,0.00044109,120]
[392067138,1761135749647,-500.0,0.00044109,120]
[392067139,1761135749671,-500.0,0.00044109,120]
[392067140,1761135749695,-500.0,0.00044109,30]
[392067141,1761135749719,-508.51208682,0.00044109,120]
[392067142,1761135749743,-500.0,0.00044109,120]
[392067143,1761135749766,-500.0,0.00044109,120]
[392067144,1761135749791,-500.0,0.00044109,120]
[392067145,1761135749814,-500.0,0.00044109,120]
[392067146,1761135749838,-505.406995,0.00044109,120]
[392067147,1761135749862,-614.39920314,0.00044109,120]
[392067148,1761135749888,-1013.61,0.00044109,120]
[392067149,1761135749915,-959.74,0.00044109,120]
[392067150,1761135749942,-500.0,0.00044109,120]
[392067151,1761135749970,-500.0,0.00044109,120]
[392067152,1761135749995,-500.0,0.00044109,120]
[392067153,1761135750021,-500.0,0.00044109,120]
[392067154,1761135750046,-500.0,0.00044109,120]
[392067155,1761135750073,-500.0,0.00044109,120]
[392067156,1761135750114,-500.0,0.00044109,120]
[392067157,1761135750139,-500.0,0.00044109,120]
[392067158,1761135750172,-202.31168395,0.00044109,120]
[392067159,1761135750218,-500.0,0.00044109,120]
[392067160,1761135750245,-629.63,0.00044109,120]
[392067161,1761135750270,-600.26,0.00044109,120]
[392067162,1761135750295,-500.0,0.00044109,120]
[392067163,1761135750319,-500.0,0.00044109,120]
[392067164,1761135750343,-500.0,0.00044109,120]
[392067165,1761135750368,-500.0,0.00044109,120]
[392067166,1761135750394,-500.0,0.00044109,120]
[392067167,1761135750419,-500.0,0.00044109,120]
[392067168,1761135750443,-500.0,0.00044109,120]
[392067169,1761135750467,-585.2,0.00044109,120]
[392067170,1761135750493,-537.65955512,0.00044109,120]
[392067171,1761135750519,-500.0,0.00044109,120]
[392067172,1761135750544,-582.34,0.00044109,120]
[392067173,1761135750570,-500.0,0.00044109,120]
[392067174,1761135750595,-500.0,0.00044109,120]
[392067175,1761135750620,-513.020331,0.00044109,120]
[392067176,1761135750645,-500.0,0.00044109,120]
[392067177,1761135750670,-520.07678283,0.00044109,120]
[392067178,1761135750695,-1896.04,0.00044109,120]
[392067179,1761135750719,-500.0,0.00044109,120]
[392067180,1761135750745,-500.0,0.00044109,120]
[392067181,1761135750769,-500.0,0.00044109,120]
[392067182,1761135750796,-500.0,0.00044109,120]
[392067183,1761135750821,-500.0,0.00044109,120]
[392067184,1761135750846,-500.0,0.00044109,120]
[392067185,1761135750871,-566.14502214,0.00044109,120]
[392067186,1761135750896,-500.0,0.00044109,120]
[392067187,1761135750921,-326.33,0.00044133,120]
[392067188,1761135750946,-2118.22,0.00044133,120]
[392067189,1761135750971,-518.50525776,0.00044133,120]
[392067190,1761135750997,-947.87227935,0.00044133,120]
[392067191,1761135751022,-2124.98540019,0.00044133,120]
[392067192,1761135751047,-1000.0,0.00044136,120]
[392067193,1761135751071,-1000.0,0.00044136,120]
[392067194,1761135751095,-1000.0,0.00044136,120]
[392067195,1761135751120,-1000.0,0.00044136,120]
[392067196,1761135751144,-1000.0,0.00044136,120]
[392067197,1761135751172,-1000.0,0.00044136,120]
[392067198,1761135751201,-1000.0,0.00044136,120]
[392067199,1761135751227,-1000.0,0.00044136,120]
[392067200,1761135751252,-1000.0,0.00044136,120]
[392067201,1761135751277,-1000.0,0.00044136,120]
[392067202,1761135751301,-686.39589383,0.00044136,120]
[392067203,1761135751326,-150.0,0.000442,30]
[392067204,1761135751351,-150.0,0.000442,30]
[392067205,1761135751376,-150.0,0.000442,30]
[392067206,1761135751400,-1000.0,0.0004422,120]
[392067207,1761135751424,-2125.55,0.0004425,120]
[392067208,1761135751448,-169.05180234,0.0004425,120]
[392067209,1761135751473,-307.59735838,0.0004425,120]
[392067210,1761135751498,-300.0,0.0004425,120]
[392067211,1761135751521,-300.0,0.0004425,120]
[392067212,1761135751547,-35203.56,0.0004425,120]
[392067213,1761135751573,-8396.44,0.0004425,120]
[392067214,1761135751600,-300.0,0.0004425,120]
[392067215,1761135751624,-679.44,0.00044263,120]
[392067216,1761135751649,-500.0,0.00044263,120]
[392067217,1761135751675,-282.95710952,0.00044263,120]
[392067218,1761135751701,-563.75,0.00044263,120]
[392067219,1761135751871,-500.0,0.00044263,120]
[392067220,1761135751900,-1294.64,0.00044263,120]
[392067221,1761135751926,-500.0,0.00044263,120]
[392067222,1761135751953,-500.0,0.00044263,120]
[392067223,1761135751979,-500.0,0.00044263,120]
[392067224,1761135752003,-500.0,0.00044263,120]
[392067225,1761135752030,-855.17,0.00044263,120]
[392067226,1761135752055,-925.88,0.00044263,120]
[392067227,1761135752083,-3274.0,0.00044263,120]
[392067228,1761135752109,-500.0,0.00044263,120]
[392067229,1761135752136,-500.0,0.00044263,120]
[392067230,1761135752163,-500.0,0.00044263,120]
[392067231,1761135752190,-559.71080276,0.00044263,120]
[392067232,1761135752214,-500.0,0.00044263,120]
[392067233,1761135752239,-500.0,0.00044263,120]
[392067234,1761135752265,-4072.57,0.00044263,30]
[392067235,1761135752290,-1136.23,0.00044263,120]
[392067236,1761135752314,-1000.0,0.00044263,120]
[392067237,1761135752339,-1659.24,0.00044263,120]
[392067238,1761135752365,-1868.1,0.00044263,120]
[392067239,1761135752390,-500.0,0.00044263,120]
[392067240,1761135752416,-500.0,0.00044263,120]
[392067241,1761135752441,-500.0,0.00044263,120]
[392067242,1761135752465,-500.0,0.00044263,120]
[392067243,1761135752490,-1334.57,0.00044263,120]
[392067244,1761135752514,-500.0,0.00044263,120]
[392067245,1761135752539,-500.0,0.00044263,120]
[392067246,1761135752565,-500.0,0.00044263,120]
[392067247,1761135752590,-341.18785061,0.00044263,120]
[392067248,1761135752616,-500.0,0.00044263,120]
[392067249,1761135752640,-150.0,0.000443,30]
[392067250,1761135752665,-150.0,0.000443,30]
[392067251,1761135752689,-150.0,0.000443,30]
[392067252,1761135752713,-150.0,0.000443,30]
[392067253,1761135752740,-500.0,0.00044383,120]
[392067254,1761135752765,-500.0,0.00044383,120]
[392067255,1761135752800,-1060.64,0.00044383,120]
[392067256,1761135752836,-500.0,0.00044383,120]
[392067257,1761135752860,-500.0,0.00044383,120]
[392067258,1761135752885,-1341.33,0.00044383,120]
[392067259,1761135752910,-500.0,0.00044383,120]
[392067260,1761135752936,-500.0,0.00044383,120]
[392067261,1761135752961,-1495.03,0.00044383,120]
[392067262,1761135752985,-500.0,0.00044383,120]
[392067263,1761135753012,-500.0,0.00044383,120]
[392067264,1761135753039,-936.64,0.00044383,120]
[392067265,1761135753066,-500.0,0.00044383,120]
[392067266,1761135753093,-1086.29,0.00044383,120]
[392067267,1761135753120,-1664.75,0.00044383,120]
[392067268,1761135753145,-840.86,0.00044383,120]
[392067269,1761135753172,-500.0,0.00044383,120]
[392067270,1761135753202,-500.0,0.00044383,120]
[392067271,1761135753228,-500.0,0.00044383,120]
[392067272,1761135753253,-1662.58,0.00044383,120]
[392067273,1761135753278,-1687.46,0.00044383,120]
[392067274,1761135753303,-500.0,0.00044383,120]
[392067275,1761135753329,-500.0,0.00044383,120]
[392067276,1761135753354,-500.0,0.00044383,120]
[392067277,1761135753380,-500.0,0.00044383,120]
[392067278,1761135753405,-500.0,0.00044383,120]
[392067279,1761135753431,-1314.8,0.00044383,120]
[392067280,1761135753456,-1018.88,0.00044383,120]
[392067281,1761135753482,-940.87,0.00044383,120]
[392067282,1761135753510,-500.0,0.00044383,120]
[392067283,1761135753535,-500.0,0.00044383,120]
[392067284,1761135753561,-500.0,0.00044383,120]
[392067285,1761135753587,-1340.18,0.00044383,120]
[392067286,1761135753612,-1306.15,0.00044383,120]
[392067287,1761135753638,-500.0,0.00044383,120]
[392067288,1761135753669,-1019.91,0.00044383,120]
[392067289,1761135753697,-1524.64,0.00044383,120]
[392067290,1761135753724,-500.0,0.00044383,120]
[392067291,1761135753750,-500.0,0.00044383,120]
[392067292,1761135753776,-500.0,0.00044383,120]
[392067293,1761135753802,-1306.99,0.00044383,120]
[392067294,1761135753829,-500.0,0.00044383,60]
[392067295,1761135753855,-943.68,0.00044383,120]
[392067296,1761135753880,-632.9476752,0.00044383,120]
[392067297,1761135753907,-500.0,0.00044383,120]
[392067298,1761135753933,-1238.79,0.00044383,120]
[392067299,1761135753959,-500.0,0.00044383,120]
[392067300,1761135753984,-500.0,0.00044383,120]
[392067301,1761135754011,-500.0,0.00044383,120]
[392067302,1761135754037,-500.0,0.00044383,120]
[392067303,1761135754062,-1070.04,0.00044383,120]
[392067304,1761135754086,-981.17,0.00044383,120]
[392067305,1761135754110,-813.58,0.00044383,120]
[392067306,1761135754138,-500.0,0.00044383,120]
[392067307,1761135754170,-500.0,0.00044383,120]
[392067308,1761135754203,-2000.86,0.00044383,120]
[392067309,1761135754228,-500.0,0.00044383,120]
[392067310,1761135754255,-1065.48,0.00044383,120]
[392067311,1761135754281,-500.0,0.00044383,120]
[392067312,1761135754306,-500.0,0.00044383,120]
[392067313,1761135754333,-548.57,0.00044383,120]
[392067314,1761135754359,-500.0,0.00044383,120]
[392067315,1761135754386,-500.0,0.00044383,120]
[392067316,1761135754413,-1860.85,0.00044383,120]
[392067317,1761135754438,-500.0,0.00044383,120]
[392067318,1761135754463,-500.0,0.00044383,120]
[392067319,1761135754488,-500.0,0.00044383,120]
[392067320,1761135754513,-500.0,0.00044383,120]
[392067321,1761135754538,-500.0,0.00044383,120]
[392067322,1761135754704,-652.14,0.00044383,120]
[392067323,1761135754732,-500.0,0.00044383,120]
[392067324,1761135754758,-500.0,0.00044383,120]
[392067325,1761135754784,-500.0,0.00044383,120]
[392067326,1761135754810,-500.0,0.00044383,120]
[392067327,1761135754835,-500.0,0.00044383,120]
[392067328,1761135754860,-500.0,0.00044383,120]
[392067329,1761135754885,-500.0,0.00044383,120]
[392067330,1761135754913,-500.0,0.00044383,120]
[392067331,1761135754938,-1160.59,0.00044383,120]
[392067332,1761135754964,-500.0,0.00044383,120]
[392067333,1761135754990,-500.0,0.00044383,120]
[392067334,1761135755017,-1155.13,0.00044383,120]
[392067335,1761135755043,-500.0,0.00044383,120]
[392067336,1761135755068,-537.83313293,0.00044383,120]
[392067337,1761135755095,-500.0,0.00044383,120]
[392067338,1761135755122,-500.0,0.00044383,120]
[392067339,1761135755148,-500.0,0.00044383,120]
[392067340,1761135755174,-500.0,0.00044383,120]
[392067341,1761135755204,-500.0,0.00044383,120]
[392067342,1761135755230,-630.1,0.00044383,120]
[392067343,1761135755258,-501.88,0.00044383,120]
[392067344,1761135755283,-500.0,0.00044383,120]
[392067345,1761135755308,-500.0,0.00044383,120]
[392067346,1761135755332,-1839.42,0.00044383,120]
[392067347,1761135755357,-500.0,0.00044383,120]
[392067348,1761135755381,-500.0,0.00044383,120]
[392067349,1761135755406,-1741.81,0.00044383,120]
[392067350,1761135755436,-500.0,0.00044383,120]
[392067351,1761135755462,-10022.96585432,0.00044383,120]
[392067352,1761135755487,-500.0,0.00044383,120]
[392067353,1761135755513,-2199.46,0.00044383,120]
[392067354,1761135755539,-196.91748504,0.00044383,120]
[392067355,1761135755566,-500.0,0.00044383,120]
[392067356,1761135755593,-832.5,0.00044383,120]
[392067357,1761135755621,-500.0,0.00044383,120]
[392067358,1761135755648,-500.0,0.00044383,120]
[392067359,1761135755680,-841.28,0.00044383,120]
[392067360,1761135755705,-572.26029467,0.00044383,120]
[392067361,1761135755732,-500.0,0.00044383,120]
[392067362,1761135755756,-500.0,0.00044383,120]
[392067363,1761135755781,-790.48,0.00044383,120]
[392067364,1761135755806,-500.0,0.00044383,120]
[392067365,1761135755831,-157.72713957,0.00044383,120]
[392067366,1761135755855,-500.0,0.00044383,120]
[392067367,1761135755881,-500.0,0.00044383,120]
[392067368,1761135755908,-500.0,0.00044383,120]
[392067369,1761135755943,-500.0,0.00044383,120]
[392067370,1761135755970,-500.0,0.00044383,120]
[392067371,1761135755995,-500.0,0.00044383,120]
[392067372,1761135756021,-500.0,0.00044383,120]
[392067373,1761135756047,-500.0,0.00044383,120]
[392067374,1761135756074,-500.0,0.00044383,120]
[392067375,1761135756101,-501.67,0.00044383,120]
[392067376,1761135756128,-358.17037509,0.00044383,120]
[392067377,1761135756155,-500.0,0.00044383,120]
[392067378,1761135756187,-500.0,0.00044383,120]
[392067379,1761135756212,-500.0,0.00044383,120]
[392067380,1761135756239,-632.64301195,0.00044383,120]
[392067381,1761135756265,-500.0,0.00044383,120]
[392067382,1761135756290,-500.0,0.00044383,120]
[392067383,1761135756316,-177.5702228,0.00044383,120]
[392067384,1761135756342,-500.0,0.00044383,120]
[392067385,1761135756368,-500.0,0.00044383,120]
[392067386,1761135756396,-500.0,0.00044383,120]
[392067387,1761135756428,-500.0,0.00044383,120]
[392067388,1761135756454,-1119.79,0.00044383,120]
[392067389,1761135756480,-500.0,0.00044383,120]
[392067390,1761135756506,-889.1,0.00044383,120]
[392067391,1761135756533,-500.0,0.00044383,120]
[392067392,1761135756559,-500.0,0.00044383,120]
[392067393,1761135756584,-500.0,0.00044383,120]
[392067394,1761135756609,-500.0,0.00044383,120]
[392067395,1761135756635,-500.0,0.00044383,120]
[392067396,1761135756660,-500.0,0.00044383,120]
[392067397,1761135756686,-640.16,0.00044383,120]
[392067398,1761135756711,-500.0,0.00044383,120]